bitfinex/quotes_ETHUSD_20240927
["timestamp","ask_amount","ask_price","bid_price","bid_amount"]
[1727400257827,0.05515658,2640.6,2640.4,2.65104]
[1727400258026,0.7973,2640.9,2640.4,2.65104]
[1727400258330,0.05525632,2640.8,2640.4,5.30208]
[1727400258478,0.05525632,2640.8,2640.4,5.91716132]
[1727400259283,0.05525632,2640.8,2640.5,2.65094]
[1727400259643,0.7973,2640.7,2640.2,2.65127]
[1727400259994,0.85249065,2640.7,2640.2,2.65127]
[1727400260194,0.7973,2640.6,2640.1,1.340255]
[1727400260428,0.7973,2640.6,2639.9,2.6516]
[1727400260429,2.65101,2640.5,2639.9,2.6516]
[1727400260633,2.65101,2640.5,2640.0,0.98819571]
[1727400260962,2.65101,2640.5,2639.9,2.6516]
[1727400260963,3.44851,2640.3,2639.6,3.42487]
[1727400261235,0.05486438,2640.2,2639.6,2.65184]
[1727400261416,0.7973,2640.3,2639.6,2.65184]
[1727400261621,0.7973,2640.3,2639.8,2.65165]
[1727400261799,0.05476452,2640.2,2639.8,2.65165]
[1727400261991,0.7973,2640.3,2639.8,2.65165]
[1727400262192,0.05476452,2640.2,2639.8,2.65165]
[1727400262436,0.7973,2640.3,2639.8,2.65165]
[1727400262635,0.05476452,2640.2,2639.8,2.65165]
[1727400262799,0.7973,2640.3,2639.8,2.65165]
[1727400263194,0.0544829,2640.2,2639.8,2.65165]
[1727400263422,0.7973,2640.3,2639.8,2.65165]
[1727400263737,0.05447748,2640.2,2639.8,2.65165]
[1727400263951,0.7973,2640.3,2639.8,2.65165]
[1727400264237,0.05444732,2640.2,2639.8,2.65165]
[1727400264700,0.7973,2640.3,2639.8,2.65165]
[1727400265020,0.7973,2640.3,2639.5,0.0379913]
[1727400265021,0.7593,2640.0,2639.5,2.6899813]
[1727400265226,0.05434405,2639.9,2639.5,2.6899813]
[1727400265534,0.05434405,2639.9,2639.5,0.0379913]
[1727400266530,0.05434405,2639.9,2639.5,2.6899813]
[1727400266734,0.05434405,2639.9,2639.6,2.65189]
[1727400266922,0.05434405,2639.9,2639.7,0.26898813]
[1727400267747,0.05434405,2639.9,2639.5,0.0379913]
[1727400268251,0.05434405,2639.9,2639.5,2.6899913]
[1727400274812,0.05434405,2639.9,2639.5,0.0379913]
[1727400275716,0.05434405,2639.9,2639.5,2.6899413]
[1727400275915,0.05434405,2639.9,2639.5,0.11375603]
[1727400276145,0.7593,2640.2,2639.7,2.65172]
[1727400276363,0.7593,2640.2,2639.8,0.530357]
[1727400277152,0.05387801,2640.1,2639.8,0.530357]
[1727400277771,0.05387801,2640.1,2639.8,3.182027]
[1727400278744,0.05387801,2640.1,2639.8,4.014427]
[1727400278916,0.05387801,2640.1,2639.9,0.4014427]
[1727400280255,0.05387801,2640.1,2639.8,3.182027]
[1727400284727,0.71317801,2640.2,2639.8,3.182027]
[1727400284930,0.05217997,2640.0,2639.8,3.182027]
[1727400285169,0.71317801,2640.2,2639.8,3.182027]
[1727400285345,0.05213007,2639.9,2639.8,3.182027]
[1727400285547,0.71317801,2640.2,2639.8,3.182027]
[1727400285840,3.4975413,2640.4,2639.5,0.0379913]
[1727400286063,2.65144,2640.1,2639.5,0.0379913]
[1727400286371,2.65144,2640.1,2639.5,0.39023743]
[1727400286545,0.05028362,2640.0,2639.5,0.39023743]
[1727400287529,0.05028362,2640.0,2639.6,2.65191]
[1727400288054,0.7593,2639.9,2639.6,2.65191]
[1727400288238,0.05017838,2639.8,2639.6,2.65191]
[1727400288569,0.05017838,2639.8,2639.6,3.30457174]
[1727400290087,0.05017838,2639.8,2639.6,3.30451174]
[1727400290476,0.7593,2639.9,2639.6,3.30451174]
[1727400290680,0.05008507,2639.7,2639.6,5.95636174]
[1727400290990,0.7593,2640.2,2639.6,5.95636174]
[1727400291159,0.05008507,2639.7,2639.6,5.95636174]
[1727400291497,0.7593,2640.2,2639.6,2.65185]
[1727400291787,0.7593,2640.2,2639.6,5.3037]
[1727400291995,0.05028468,2640.1,2639.6,5.3037]
[1727400292496,0.05028468,2640.1,2639.7,2.65179]
[1727400292790,0.05028468,2640.1,2639.6,2.65185]
[1727400292791,0.05028468,2640.1,2639.8,2.65171]
[1727400292963,0.05028468,2640.1,2639.9,1.097571]
[1727400293165,0.05028468,2640.1,2639.9,2.916701]
[1727400293399,2.37458799,2640.4,2639.9,0.265171]
[1727400293565,0.80952936,2640.0,2639.7,2.65177]
[1727400293859,0.05023371,2639.9,2639.7,2.65177]
[1727400301795,0.05023371,2639.9,2639.8,2.65171]
[1727400301977,0.05023371,2639.9,2639.7,2.65177]
[1727400302155,0.05023371,2639.9,2639.7,3.30440874]
[1727400303290,0.05023371,2639.9,2639.7,3.30439874]
[1727400303656,0.05023371,2639.9,2639.7,2.65176]
[1727400306296,0.05023371,2639.9,2639.7,2.65175]
[1727400306801,0.7593,2640.0,2639.7,2.65175]
[1727400307299,0.04990602,2639.9,2639.7,2.65175]
[1727400308363,0.04990602,2639.9,2639.8,0.99225308]
[1727400308563,0.04990602,2639.9,2639.7,2.65175]
[1727400309193,0.04990602,2639.9,2639.7,2.65174]
[1727400309608,0.7593,2640.0,2639.7,5.30349]
[1727400309896,0.7593,2640.0,2639.7,2.65174]
[1727400310206,0.0480838,2639.9,2639.7,2.65174]
[1727400312671,0.0480838,2639.9,2639.8,0.9924168]
[1727400312872,0.0480838,2639.9,2639.7,2.65174]
[1727400314616,0.7974,2639.8,2639.6,0.79009793]
[1727400314835,3.44931,2639.6,2639.5,0.0379913]
[1727400315110,3.44931,2639.6,2638.7,0.82808923]
[1727400315111,2.0,2639.3,2638.7,0.0379913]
[1727400315414,8.06540799,2638.8,2638.7,0.0379913]
[1727400315990,10.57831014,2638.8,2638.7,0.0379913]
[1727400316437,6.45012,2638.8,2638.7,0.0379913]
[1727400316736,4.560393,2638.8,2638.7,0.0379913]
[1727400316942,3.45012,2638.8,2638.7,0.0379913]
[1727400317933,3.49402448,2638.8,2638.7,0.0379913]
[1727400318348,6.9983055,2638.8,2638.7,0.0379913]
[1727400326956,3.49402448,2638.8,2638.7,0.0379913]
[1727400348514,5.11155935,2638.8,2638.7,0.0379913]
[1727400348681,6.35323829,2638.8,2638.7,0.0379913]
[1727400351588,0.04390448,2638.8,2638.7,0.0379913]
[1727400351789,2.65244,2639.1,2638.7,0.8110913]
[1727400352092,1.61753487,2638.9,2638.7,0.8110913]
[1727400352687,4.27019487,2638.9,2638.7,0.8110913]
[1727400353005,2.65272,2638.8,2638.7,0.8110913]
[1727400353543,1.61753487,2638.9,2638.7,0.8110913]
[1727400353701,4.27015487,2638.9,2638.7,0.8110913]
[1727400354101,2.6889058,2638.8,2638.7,0.8110913]
[1727400355313,0.0361858,2638.8,2638.7,0.8110913]
[1727400357638,2.6889058,2638.8,2638.7,0.0379913]
[1727400362995,0.0361858,2638.8,2638.7,0.7940913]
[1727400363229,2.65217,2639.4,2638.8,2.65266]
[1727400363427,5.30396,2639.6,2639.0,0.7561]
[1727400363611,2.65225,2639.3,2639.0,0.7561]
[1727400364228,2.65241,2639.1,2638.7,0.0379913]
[1727400364425,2.65241,2639.1,2638.8,0.7561]
[1727400364617,2.65225,2639.3,2638.8,0.7561]
[1727400365143,2.65225,2639.3,2638.8,1.10079913]
[1727400365644,2.65183,2639.7,2638.9,0.7561]
[1727400365943,2.65183,2639.7,2639.1,3.40849]
[1727400366115,2.65183,2639.7,2639.2,0.340849]
[1727400366517,12.95166,2639.9,2639.3,0.7561]
[1727400366716,5.65166,2639.9,2639.3,0.7561]
[1727400367346,5.30335,2639.9,2639.3,0.7561]
[1727400367555,2.65166,2639.9,2639.3,1.3962489]
[1727400368343,2.65183,2639.7,2639.3,0.7561]
[1727400373815,2.65208,2639.5,2639.3,0.7561]
[1727400374009,0.61558271,2639.4,2639.3,0.7561]
[1727400374223,2.65208,2639.5,2639.3,0.7561]
[1727400382048,5.30374,2639.7,2639.3,0.7561]
[1727400382261,2.65165,2639.9,2639.3,0.7561]
[1727400382424,2.65171,2639.8,2639.3,1.096931]
[1727400382624,2.65165,2639.9,2639.3,3.749141]
[1727400383359,2.65176,2639.8,2639.3,1.096931]
[1727400383594,2.65165,2639.9,2639.3,1.096931]
[1727400383761,2.65165,2639.9,2639.3,3.749131]
[1727400384765,2.65165,2639.9,2639.4,4.0531441]
[1727400385624,2.65165,2639.9,2639.4,1.4010341]
[1727400387856,2.65175,2639.8,2639.4,0.7609]
[1727400388053,6.15539706,2639.9,2639.4,0.7609]
[1727400388238,2.65181,2639.7,2639.4,0.7609]
[1727400388441,9.63929706,2639.9,2639.4,0.7609]
[1727400388744,6.98759706,2639.9,2639.4,0.7609]
[1727400388943,2.65178,2639.8,2639.4,0.7609]
[1727400391257,6.15539706,2639.9,2639.4,0.7609]
[1727400391446,2.65188,2639.7,2639.4,0.7609]
[1727400393969,1.61598637,2639.6,2639.4,0.7609]
[1727400394480,1.61598637,2639.6,2638.8,2.65266]
[1727400394481,2.65201,2639.5,2638.9,3.41351]
[1727400394690,2.65201,2639.5,2638.9,4.02392613]
[1727400394903,2.65201,2639.5,2639.0,0.7609]
[1727400395105,2.65201,2639.5,2639.0,3.41341]
[1727400395671,1.61598637,2639.6,2639.0,3.41341]
[1727400395868,4.26790637,2639.6,2639.0,3.41341]
[1727400396304,4.26790637,2639.6,2639.0,3.41334]
[1727400396814,2.65188,2639.7,2639.1,2.65238]
[1727400396976,2.65195,2639.6,2639.1,0.7609]
[1727400397372,3.41370761,2639.7,2639.1,0.7609]
[1727400397999,2.65194,2639.6,2639.1,0.7609]
[1727400398412,3.41370761,2639.7,2639.1,3.41331]
[1727400398651,2.65192,2639.6,2639.1,0.7609]
[1727400398825,3.41370761,2639.7,2639.1,0.7609]
[1727400399113,3.41370761,2639.7,2639.1,3.41329]
[1727400399417,2.65196,2639.6,2639.1,0.7609]
[1727400400406,3.41370761,2639.7,2639.1,0.7609]
[1727400400580,2.65188,2639.7,2639.2,0.7609]
[1727400400775,2.65164,2639.9,2639.3,0.7609]
[1727400400996,2.65164,2639.9,2639.5,0.7609]
[1727400401275,5.30295,2640.1,2639.5,2.65194]
[1727400401480,2.65146,2640.1,2639.6,0.7609]
[1727400401914,2.65158,2640.0,2639.6,0.7609]
[1727400402129,2.65171,2639.9,2639.6,0.7609]
[1727400402448,2.65172,2639.8,2639.6,0.7609]
[1727400402647,2.65181,2639.7,2639.6,0.7609]
[1727400402860,4.26770637,2639.8,2639.1,0.7609]
[1727400403017,2.65189,2639.7,2639.2,0.7609]
[1727400407546,2.65189,2639.7,2639.2,3.4132]
[1727400408171,0.8322,2640.9,2639.6,1.61598637]
[1727400408458,2.65033,2641.2,2640.6,3.4118]
[1727400408675,3.04659009,2641.4,2640.9,0.7609]
[1727400408822,2.6502,2641.4,2640.9,0.7609]
[1727400409012,0.8322,2641.8,2640.9,0.7609]
[1727400409231,2.65009,2641.5,2640.9,0.7609]
[1727400409716,1.61598637,2641.6,2640.9,0.7609]
[1727400410277,2.65018,2641.4,2640.9,0.7609]
[1727400410585,0.265018,2641.3,2640.9,0.7609]
[1727400411273,2.915228,2641.3,2640.9,0.7609]
[1727400412039,2.915248,2641.3,2640.9,0.7609]
[1727400412436,2.915228,2641.3,2640.9,0.7609]
[1727400412637,2.65021,2641.3,2640.9,0.7609]
[1727400412836,2.65012,2641.4,2640.9,0.7609]
[1727400413549,0.55,2641.1,2640.9,0.7609]
[1727400413976,2.64991,2641.6,2640.9,3.41146]
[1727400414284,2.65018,2641.4,2640.9,0.7609]
[1727400414775,2.64993,2641.6,2640.9,0.7609]
[1727400414942,0.264993,2641.5,2640.9,0.7609]
[1727400415143,0.264993,2641.5,2640.9,3.41151]
[1727400415670,3.48193,2641.8,2641.0,2.65044]
[1727400415877,2.64973,2641.8,2641.2,0.8262]
[1727400416064,2.64981,2641.7,2641.2,0.8262]
[1727400416772,2.64973,2641.8,2641.2,0.8262]
[1727400416983,0.26877213,2641.7,2641.2,3.4765]
[1727400417274,0.0379913,2641.9,2641.5,0.8262]
[1727400417501,0.0379913,2641.9,2641.5,3.4762]
[1727400417635,0.0379913,2641.9,2641.5,0.8262]
[1727400417841,0.0379913,2641.9,2641.5,3.4762]
[1727400419171,0.0379913,2641.9,2641.5,0.8262]
[1727400420253,2.95637243,2641.9,2641.5,0.8262]
[1727400420785,0.30674243,2641.9,2641.5,0.8262]
[1727400420945,2.64978,2641.8,2641.5,0.8262]
[1727400421147,2.64982,2641.7,2641.5,0.8262]
[1727400421447,2.64978,2641.8,2641.5,0.8262]
[1727400421649,2.94547224,2641.7,2641.5,0.8262]
[1727400422157,2.6499,2641.6,2641.5,0.8262]
[1727400422358,2.65013,2641.4,2641.1,0.8262]
[1727400422572,2.65001,2641.5,2641.1,0.8262]
[1727400422754,0.29455522,2641.5,2641.1,0.8262]
[1727400423595,0.29565224,2641.7,2641.1,0.8262]
[1727400423803,2.64972,2641.8,2641.2,0.8262]
[1727400425154,2.6499,2641.6,2641.2,0.8262]
[1727400426374,2.65001,2641.5,2641.2,0.8262]
[1727400426698,2.64974,2641.8,2641.2,0.8262]
[1727400426984,2.64997,2641.6,2641.2,0.8262]
[1727400427749,2.65038,2641.2,2640.9,0.8262]
[1727400427984,2.65028,2641.3,2640.9,0.8262]
[1727400428147,3.20043,2641.1,2640.9,0.8262]
[1727400431582,2.65051,2641.0,2640.9,0.8262]
[1727400431754,2.65088,2640.7,2640.4,0.7996]
[1727400432283,2.65101,2640.5,2640.4,0.7996]
[1727400432887,2.65088,2640.7,2640.4,0.7996]
[1727400433060,2.65091,2640.6,2640.4,0.7996]
[1727400433995,2.65101,2640.5,2640.4,0.7996]
[1727400434154,2.65128,2640.3,2640.0,0.7996]
[1727400434349,2.65128,2640.3,2639.5,2.65201]
[1727400434350,2.65132,2640.2,2639.5,3.45154]
[1727400434570,3.26605004,2640.3,2639.5,3.45154]
[1727400435090,2.65128,2640.3,2639.5,3.45154]
[1727400435255,2.65144,2640.1,2639.5,3.45154]
[1727400436278,2.65128,2640.3,2639.6,3.4515]
[1727400436482,2.65128,2640.3,2639.6,2.72766147]
[1727400436693,2.65128,2640.3,2639.7,1.68720219]
[1727400436894,2.65128,2640.3,2639.8,0.7996]
[1727400437663,2.65103,2640.5,2639.8,0.7996]
[1727400437881,2.65112,2640.4,2639.8,0.7996]
[1727400438086,2.6506,2641.0,2640.8,0.7996]
[1727400439357,2.65034,2641.2,2640.8,0.7996]
[1727400439562,3.20045,2641.1,2640.8,0.7996]
[1727400439802,0.39618267,2641.6,2641.1,2.65032]
[1727400440020,2.95641243,2641.9,2641.2,0.7996]
[1727400440314,0.56059224,2641.8,2641.2,3.44987]
[1727400440470,0.0379913,2641.9,2641.3,2.65018]
[1727400440671,0.0379913,2641.9,2641.4,3.44963]
[1727400441141,0.0379913,2641.9,2641.6,2.64989]
[1727400441421,0.0379913,2641.9,2641.7,3.44939]
[1727400443769,0.0379913,2641.9,2641.7,0.7996]
[1727400444802,0.0379913,2641.9,2641.4,0.8003]
[1727400445112,2.6876613,2641.9,2641.4,0.8003]
[1727400445880,0.0379913,2641.9,2641.4,0.8003]
[1727400446098,2.6876013,2641.9,2641.4,0.8003]
[1727400446583,0.0379913,2641.9,2641.4,0.8003]
[1727400447001,0.0379913,2641.9,2641.4,1.145348]
[1727400448640,2.6876113,2641.9,2641.4,1.145348]
[1727400448848,0.0379913,2641.9,2641.4,0.8003]
[1727400449008,2.64982,2641.7,2641.1,3.45067]
[1727400449207,2.64982,2641.7,2641.1,2.144426]
[1727400449208,2.64991,2641.6,2641.1,2.144426]
[1727400449540,2.64991,2641.6,2641.1,0.8003]
[1727400449747,2.64982,2641.7,2641.1,0.8003]
[1727400450192,2.64982,2641.7,2641.1,3.4507]
[1727400453134,2.6876313,2641.9,2641.2,2.65029]
[1727400453290,2.6876313,2641.9,2641.3,2.6502]
[1727400453496,2.6876313,2641.9,2641.4,0.27259168]
[1727400453697,0.0379913,2641.9,2641.6,2.64984]
[1727400454145,0.0379913,2641.9,2641.7,2.64974]
[1727400454840,0.0379913,2641.9,2641.5,3.45024]
[1727400454997,0.0379913,2641.9,2641.6,0.345024]
[1727400455425,0.0379913,2641.9,2641.5,0.8003]
[1727400455628,2.6875913,2641.9,2641.5,0.8003]
[1727400456599,2.64982,2641.7,2641.2,0.8003]
[1727400458144,0.0379913,2641.9,2641.4,0.8003]
[1727400459136,0.0379913,2641.9,2641.4,3.45034]
[1727400460109,2.6876113,2641.9,2641.4,3.45034]
[1727400461212,2.6876113,2641.9,2641.4,0.8003]
[1727400461415,0.0379913,2641.9,2641.7,0.8003]
[1727400461620,0.0379913,2641.9,2641.8,7.02211769]
[1727400466235,0.0379913,2641.9,2641.8,3.45]
[1727400466412,0.0379913,2641.9,2641.8,4.059981]
[1727400470054,0.0379913,2641.9,2641.8,7.63209903]
[1727400478564,0.0379913,2641.9,2641.8,4.059981]
[1727400481793,0.0379913,2641.9,2641.6,2.64981]
[1727400481952,0.0379913,2641.9,2641.6,5.29965]
[1727400482283,0.0379913,2641.9,2641.6,2.64981]
[1727400482849,0.0379913,2641.9,2641.6,5.29965]
[1727400483089,0.0379913,2641.9,2641.6,2.64981]
[1727400484682,0.0379913,2641.9,2641.6,5.29964]
[1727400484887,0.0379913,2641.9,2641.7,2.64979]
[1727400485684,0.0379913,2641.9,2641.6,2.64981]
[1727400486393,0.0379913,2641.9,2641.6,5.29965]
[1727400486686,0.0379913,2641.9,2641.6,2.64981]
[1727400492691,0.0379913,2641.9,2641.6,5.29965]
[1727400493200,0.0379913,2641.9,2641.7,2.64979]
[1727400495765,0.0379913,2641.9,2641.8,2.6497]
[1727400497519,0.0379913,2641.9,2641.8,3.18722056]
[1727400499390,0.0379913,2641.9,2641.8,3.98982056]
[1727400499815,0.0379913,2641.9,2641.8,0.53752056]
[1727400500014,0.0379913,2641.9,2641.6,2.64988]
[1727400500228,0.0379913,2641.9,2641.3,2.6502]
[1727400500229,0.7858,2641.8,2641.3,2.6502]
[1727400500609,0.7858,2641.8,2641.2,2.6503]
[1727400500937,3.43552,2641.8,2641.2,2.6503]
[1727400502940,4.04782413,2641.8,2641.2,2.6503]
[1727400503603,1.39810413,2641.8,2641.2,2.6503]
[1727400503803,1.39810413,2641.8,2641.3,2.65019]
[1727400504507,1.39810413,2641.8,2641.2,2.6503]
[1727400504707,1.39810413,2641.8,2641.3,2.65019]
[1727400506145,0.7858,2641.8,2641.3,2.65019]
[1727400506648,0.7858,2641.8,2641.4,2.65008]
[1727400506855,0.7858,2641.8,2641.5,0.07571346]
[1727400507140,0.0379913,2641.9,2641.6,2.6499]
[1727400508542,0.0379913,2641.9,2641.8,2.6497]
[1727400508864,0.0379913,2641.9,2641.8,0.53753056]
[1727400509340,0.0379913,2641.9,2641.8,3.2629317]
[1727400509744,0.0379913,2641.9,2641.8,3.18723056]
[1727400511649,0.0379913,2641.9,2641.8,0.53753056]
[1727400512263,0.0379913,2641.9,2641.7,2.64979]
[1727400512845,0.0379913,2641.9,2641.8,2.6497]
[1727400513540,0.0379913,2641.9,2641.8,2.72539831]
[1727400513711,0.0379913,2641.9,2641.8,2.6497]
[1727400513913,0.0379913,2641.9,2641.8,3.18722283]
[1727400514126,0.01789756,2641.9,2641.8,3.18722283]
[1727400515054,0.01789756,2641.9,2641.8,0.53752283]
[1727400516344,0.01789756,2641.9,2641.8,3.18722283]
[1727400517180,0.01789756,2641.9,2641.8,0.53752283]
[1727400517381,0.01789756,2641.9,2641.6,2.64982]
[1727400517581,0.01789756,2641.9,2641.7,2.64978]
[1727400518071,0.01789756,2641.9,2641.7,2.6498]
[1727400521671,0.01789756,2641.9,2641.6,2.64982]
[1727400521873,0.01789756,2641.9,2641.7,0.35303245]
[1727400522562,0.01789756,2641.9,2641.7,3.00280245]
[1727400526098,0.01789756,2641.9,2641.8,2.6497]
[1727400526308,0.01789756,2641.9,2641.7,3.07850668]
[1727400526309,0.01789756,2641.9,2641.7,3.00280245]
[1727400528402,0.01789756,2641.9,2641.7,2.64977]
[1727400529990,0.01789756,2641.9,2641.8,2.6497]
[1727400533385,0.01789756,2641.9,2641.8,2.7253964]
[1727400533690,0.01789756,2641.9,2641.8,2.6497]
[1727400535372,0.01789756,2641.9,2641.8,3.4418]
[1727400535603,0.01789756,2641.9,2641.8,4.21980331]
[1727400536319,0.01789756,2641.9,2641.8,5.83257006]
[1727400536613,0.01789756,2641.9,2641.8,9.10565094]
[1727400536797,0.01789756,2641.9,2641.8,8.23986956]
[1727400537000,0.01789756,2641.9,2641.8,9.42501646]
[1727400537175,0.01789756,2641.9,2641.8,9.03209998]
[1727400538014,0.01789756,2641.9,2641.8,8.23986956]
[1727400538187,0.01789756,2641.9,2641.8,9.42501646]
[1727400538374,0.01789756,2641.9,2641.8,9.03169712]
[1727400538576,0.01789756,2641.9,2641.8,8.23986956]
[1727400538914,0.01789756,2641.9,2641.8,9.03168223]
[1727400539373,0.01789756,2641.9,2641.8,8.23986956]
[1727400540020,0.01789756,2641.9,2641.8,9.03168223]
[1727400540388,0.01789756,2641.9,2641.8,6.62710281]
[1727400540588,0.01789756,2641.9,2641.8,6.70278865]
[1727400542285,0.01789756,2641.9,2641.8,6.70131681]
[1727400542583,0.01789756,2641.9,2641.8,6.70026058]
[1727400542913,0.01789756,2641.9,2641.8,6.62457094]
[1727400543122,0.01789756,2641.9,2641.8,5.18171188]
[1727400543283,0.01789756,2641.9,2641.8,5.25739919]
[1727400545231,0.01789756,2641.9,2641.8,4.29549062]
[1727400546089,0.01789756,2641.9,2641.8,5.2572535]
[1727400546790,0.01789756,2641.9,2641.8,5.25725226]
[1727400547217,0.01789756,2641.9,2641.8,4.29549062]
[1727400548192,0.01789756,2641.9,2641.8,5.25732934]
[1727400548630,0.01789756,2641.9,2641.8,4.29549062]
[1727400549092,0.01789756,2641.9,2641.8,5.25734553]
[1727400549424,0.01789756,2641.9,2641.8,4.29549062]
[1727400550203,0.01789756,2641.9,2641.8,5.25785442]
[1727400550394,0.01789756,2641.9,2641.8,6.70157543]
[1727400550594,0.01789756,2641.9,2641.8,5.25785442]
[1727400550941,0.01789756,2641.9,2641.8,6.70165447]
[1727400551123,0.01789756,2641.9,2641.8,5.25785442]
[1727400552126,0.01789756,2641.9,2641.8,5.25816098]
[1727400552318,0.01789756,2641.9,2641.8,6.70224172]
[1727400552513,0.01789756,2641.9,2641.8,4.29549062]
[1727400552732,0.01789756,2641.9,2641.8,5.25822637]
[1727400553327,0.01789756,2641.9,2641.8,5.25830878]
[1727400554051,0.01789756,2641.9,2641.8,3.42770331]
[1727400554220,0.01789756,2641.9,2641.8,4.39053305]
[1727400555324,0.79039756,2641.9,2641.6,2.64984]
[1727400555558,0.79039756,2641.9,2641.5,2.64999]
[1727400555848,0.79039756,2641.9,2641.6,2.6499]
[1727400556314,0.79039756,2641.9,2641.3,2.65017]
[1727400556520,0.7725,2641.8,2641.3,2.65012]
[1727400556853,0.7725,2641.8,2641.4,2.65008]
[1727400557417,0.7725,2641.8,2641.3,2.65012]
[1727400558520,0.7725,2641.8,2641.4,2.65007]
[1727400560837,0.7725,2641.8,2641.7,2.6498]
[1727400562526,0.01789756,2641.9,2641.7,2.6498]
[1727400562727,0.01789756,2641.9,2641.7,2.64974]
[1727400565059,0.01789756,2641.9,2641.8,2.6497]
[1727400566037,0.01789756,2641.9,2641.8,4.26246675]
[1727400566232,0.01789756,2641.9,2641.8,4.95368743]
[1727400566567,0.01789756,2641.9,2641.8,4.22481584]
[1727400569478,0.01789756,2641.9,2641.8,5.83758259]
[1727400570562,0.01789756,2641.9,2641.8,6.80099353]
[1727400571271,0.01789756,2641.9,2641.8,3.41661584]
[1727400574475,0.01789756,2641.9,2641.8,5.02938259]
[1727400574670,0.01789756,2641.9,2641.8,5.9928697]
[1727400574877,0.01789756,2641.9,2641.8,5.99286563]
[1727400575176,0.01789756,2641.9,2641.8,5.02938259]
[1727400576679,0.01789756,2641.9,2641.8,5.99288559]
[1727400576985,0.01789756,2641.9,2641.8,5.02938259]
[1727400577160,0.01789756,2641.9,2641.8,5.99291569]
[1727400577674,0.01789756,2641.9,2641.8,5.02938259]
[1727400578289,0.78669756,2641.9,2641.3,0.79181267]
[1727400578472,0.78669756,2641.9,2641.1,8.1482]
[1727400578473,0.7688,2641.7,2641.1,9.99033]
[1727400578671,0.7688,2641.6,2641.1,2.65033]
[1727400579157,0.7688,2641.6,2641.1,2.65031]
[1727400579480,0.7688,2641.6,2641.3,2.6502]
[1727400580471,0.7688,2641.6,2641.2,2.65027]
[1727400581092,0.7688,2641.6,2641.1,2.65031]
[1727400581300,0.7688,2641.6,2641.1,3.180397]
[1727400581456,0.7688,2641.6,2641.1,2.65031]
[1727400582290,0.7688,2641.6,2641.2,2.65024]
[1727400583194,0.7688,2641.6,2641.3,2.65019]
[1727400583667,0.7688,2641.6,2641.1,2.65031]
[1727400583874,0.7688,2641.6,2641.2,2.6503]
[1727400588505,0.7688,2641.6,2641.1,2.65031]
[1727400589168,0.7688,2641.6,2641.1,5.30065]
[1727400589388,0.7688,2641.6,2641.1,2.65031]
[1727400590023,0.7688,2641.6,2641.1,5.30063]
[1727400590311,0.7688,2641.6,2641.1,2.65031]
[1727400590513,2.38156675,2641.6,2641.1,2.65031]
[1727400590715,0.7688,2641.5,2641.1,2.65031]
[1727400592013,0.7688,2641.5,2641.1,5.30064]
[1727400592183,0.7688,2641.5,2641.1,3.18794537]
[1727400593703,0.7688,2641.5,2641.0,2.6505]
[1727400594408,0.7688,2641.5,2641.0,2.65048]
[1727400597089,5.03163675,2641.5,2640.8,3.5345573]
[1727400597297,3.3109931,2641.5,2640.8,3.5345573]
[1727400597594,2.38156675,2641.5,2640.8,3.5345573]
[1727400598314,0.7688,2641.5,2640.8,3.5345573]
[1727400598619,0.7688,2641.5,2641.0,2.65049]
[1727400598822,0.7969,2641.1,2640.8,0.0757173]
[1727400598993,0.7969,2640.8,2640.3,2.65113]
[1727400599193,1.61276675,2640.7,2640.1,5.30271]
[1727400599404,1.61276675,2640.7,2640.2,2.6513]
[1727400599926,0.7969,2640.6,2640.3,2.6512]
[1727400600086,0.7969,2640.6,2640.3,2.65113]
[1727400600281,0.7969,2640.6,2640.1,2.72710872]
[1727400600486,0.7969,2640.6,2640.1,2.65137]
[1727400600681,0.7969,2640.6,2640.1,2.72711142]
[1727400600882,0.7969,2640.6,2640.1,2.65137]
[1727400601312,2.40966675,2640.5,2639.9,2.65159]
[1727400601549,2.40966675,2640.5,2640.0,2.6515]
[1727400601725,2.40966675,2640.5,2639.9,2.65159]
[1727400602132,1.61276675,2640.3,2639.9,2.65159]
[1727400602425,0.7969,2640.2,2639.7,2.6518]
[1727400602927,0.7969,2640.2,2639.8,0.87325438]
[1727400603224,0.7969,2640.2,2639.8,0.7975]
[1727400603585,0.7969,2640.2,2640.0,2.65151]
[1727400604013,0.7969,2640.2,2640.0,3.00398581]
[1727400604410,0.7969,2640.2,2640.0,0.35247581]
[1727400604801,0.7969,2640.2,2640.0,3.00395581]
[1727400605219,0.7969,2640.6,2640.0,3.00395581]
[1727400605423,0.7969,2640.6,2640.0,3.07970244]
[1727400608426,0.7969,2640.6,2640.0,3.00395581]
[1727400609400,3.44781,2640.6,2640.0,3.00395581]
[1727400609788,2.65102,2640.5,2640.0,0.35247581]
[1727400610029,2.65102,2640.5,2639.9,2.65154]
[1727400610525,0.7969,2640.6,2640.0,2.6515]
[1727400611502,3.44784,2640.6,2640.0,2.6515]
[1727400612325,0.7969,2640.6,2640.2,2.65123]
[1727400612529,0.7969,2640.6,2640.3,2.65117]
[1727400613533,0.7969,2640.6,2640.2,3.43143]
[1727400613715,0.7969,2640.6,2640.0,3.43169]
[1727400614041,2.65103,2640.5,2639.9,2.65159]
[1727400614803,2.65103,2640.5,2639.8,3.50758671]
[1727400615123,0.7969,2640.6,2640.0,2.65151]
[1727400615318,0.7969,2640.6,2640.1,0.265151]
[1727400615644,3.44781,2640.6,2640.0,2.65151]
[1727400617710,3.44781,2640.6,2640.0,2.65145]
[1727400619126,2.65105,2640.5,2639.8,3.50757674]
[1727400619452,3.44781,2640.6,2640.0,2.65151]
[1727400620334,0.8284,2640.4,2639.9,0.35075767]
[1727400620538,3.47957,2640.4,2639.8,3.43183]
[1727400620718,2.65123,2640.3,2639.7,0.0757528]
[1727400620915,0.8284,2640.3,2639.7,2.7274928]
[1727400621730,0.8284,2640.3,2639.8,2.65171]
[1727400623152,0.8284,2640.3,2639.8,3.18963928]
[1727400624245,0.8284,2640.3,2639.9,2.65157]
[1727400624443,0.8284,2640.3,2639.8,3.18963928]
[1727400627973,3.47964,2640.3,2639.8,0.53792928]
[1727400628167,3.47964,2640.3,2639.7,2.65181]